fUST/lending_fUST_20240929
["ID","MTS","AMOUNT","RATE_DAILY","PERIOD"]
[339388203,1727542246644,-688.64,0.00019726,2]
[339388204,1727542246654,-500.0,0.00019726,2]
[339388205,1727542246664,-500.0,0.00019726,2]
[339388206,1727542246673,-4126.31,0.00019726,2]
[339388207,1727542246682,-603.35632666,0.00019726,2]
[339388208,1727542246691,-500.0,0.00019726,2]
[339388209,1727542246700,-2629.88,0.00019726,2]
[339388210,1727542246710,-3000.0,0.0001973,2]
[339388211,1727542246719,-1153.146607,0.0001973,2]
[339388212,1727542246728,-1153.146607,0.0001973,2]
[339388213,1727542246737,-1547.313925,0.0001973,2]
[339388214,1727542246746,-1547.313925,0.0001973,2]
[339388215,1727542246758,-174.736616,0.0001973,2]
[339388216,1727542246767,-4753.035115,0.0001973,2]
[339388217,1727542246777,-151.0,0.0001973,2]
[339388218,1727542246787,-151.0,0.0001973,2]
[339388219,1727542246797,-174.736616,0.0001973,2]
[339388220,1727542246807,-4753.035115,0.0001973,2]
[339388221,1727542246817,-151.0,0.0001973,2]
[339388222,1727542246827,-151.0,0.0001973,2]
[339388223,1727542246836,-463.7514,0.0001973,2]
[339388224,1727542246845,-151.0,0.0001973,2]
[339388225,1727542246854,-151.0,0.0001973,2]
[339388226,1727542246863,-151.0,0.0001973,2]
[339388227,1727542246872,-173.375908,0.0001973,2]
[339388228,1727542246882,-173.375908,0.0001973,2]
[339388229,1727542246891,-316.419009,0.0001973,2]
[339388230,1727542246900,-312.457129,0.0001973,2]
[339388231,1727542246909,-228.969943,0.0001973,2]
[339388232,1727542246918,-316.419009,0.0001973,2]
[339388233,1727542246926,-312.457129,0.0001973,2]
[339388234,1727542246936,-228.969943,0.0001973,2]
[339388235,1727542246945,-1043.98033,0.0001973,2]
[339388236,1727542246955,-151.0,0.0001973,2]
[339388237,1727542246965,-1043.98033,0.0001973,2]
[339388238,1727542246977,-158.985122,0.0001973,2]
[339388239,1727542246987,-158.985122,0.0001973,2]
[339388240,1727542246996,-151.0,0.0001973,2]
[339388241,1727542247006,-616.288879,0.0001973,2]
[339388242,1727542247014,-616.288879,0.0001973,2]
[339388243,1727542247024,-508.894113,0.0001973,2]
[339388244,1727542247033,-508.894113,0.0001973,2]
[339388245,1727542247042,-464.32699,0.0001973,2]
[339388246,1727542247052,-464.32699,0.0001973,2]
[339388247,1727542247062,-151.0,0.0001973,2]
[339388248,1727542247071,-151.0,0.0001973,2]
[339388249,1727542247080,-1825.965415,0.0001973,2]
[339388250,1727542247090,-419.020737,0.0001973,2]
[339388251,1727542247101,-1825.965415,0.0001973,2]
[339388252,1727542247112,-419.020737,0.0001973,2]
[339388253,1727542247124,-3000.0,0.0001974,2]
[339388254,1727542247135,-3000.0,0.0001975,2]
[339388255,1727542247144,-151.0,0.0001975,2]
[339388256,1727542247153,-3000.0,0.0001976,2]
[339388257,1727542247165,-3000.0,0.0001977,2]
[339388258,1727542247174,-151.0,0.0001977,2]
[339388259,1727542247184,-1281.12701,0.0001977,2]
[339388260,1727542247194,-1281.12701,0.0001977,2]
[339388261,1727542247203,-3000.0,0.0001978,2]
[339388262,1727542247212,-2247.4630647,0.0001978,2]
[339388263,1727542247222,-3000.0,0.0001979,2]
[339388264,1727542247231,-3000.0,0.000198,2]
[339388265,1727542247241,-150.112233,0.000198,2]
[339388266,1727542247252,-150.112233,0.000198,2]
[339388267,1727542247261,-3000.0,0.0001981,2]
[339388268,1727542247270,-3000.0,0.0001982,2]
[339388269,1727542247280,-3000.0,0.0001983,2]
[339388270,1727542247289,-500.0,0.00019837,2]
[339388271,1727542247299,-3000.0,0.0001984,2]
[339388272,1727542247309,-616.288879,0.0001984,2]
[339388273,1727542247318,-616.288879,0.0001984,2]
[339388274,1727542247328,-508.894113,0.0001984,2]
[339388275,1727542247337,-508.894113,0.0001984,2]
[339388276,1727542247349,-464.32699,0.0001984,2]
[339388277,1727542247360,-464.32699,0.0001984,2]
[339388278,1727542247369,-151.0,0.0001984,2]
[339388279,1727542247379,-151.0,0.0001984,2]
[339388280,1727542247390,-1825.965415,0.0001984,2]
[339388281,1727542247402,-419.020737,0.0001984,2]
[339388282,1727542247412,-1825.965415,0.0001984,2]
[339388283,1727542247421,-419.020737,0.0001984,2]
[339388284,1727542247431,-500.0,0.00019848,2]
[339388285,1727542247441,-3000.0,0.0001985,2]
[339388286,1727542247451,-151.0,0.0001985,2]
[339388287,1727542247460,-3000.0,0.0001986,2]
[339388288,1727542247469,-6823.95105329,0.0001986,3]
[339388289,1727542247478,-3000.0,0.0001987,2]
[339388290,1727542247488,-151.0,0.0001987,2]
[339388291,1727542247501,-316.419009,0.0001987,2]
[339388292,1727542247510,-312.457129,0.0001987,2]
[339388293,1727542247520,-316.419009,0.0001987,2]
[339388294,1727542247529,-312.457129,0.0001987,2]
[339388295,1727542247540,-1043.98033,0.0001987,2]
[339388296,1727542247548,-1043.98033,0.0001987,2]
[339388297,1727542247557,-6823.95105329,0.0001987,3]
[339388298,1727542247566,-500.95305338,0.00019873,2]
[339388299,1727542247576,-500.0,0.00019873,2]
[339388300,1727542247585,-500.0,0.00019873,2]
[339388301,1727542247595,-3105.775926,0.0001988,2]
[339388302,1727542247604,-1153.146607,0.0001988,2]
[339388303,1727542247614,-1153.146607,0.0001988,2]
[339388304,1727542247622,-1547.313925,0.0001988,2]
[339388305,1727542247632,-1547.313925,0.0001988,2]
[339388306,1727542247641,-174.736616,0.0001988,2]
[339388307,1727542247650,-151.0,0.0001988,2]
[339388308,1727542247659,-151.0,0.0001988,2]
[339388309,1727542247669,-174.736616,0.0001988,2]
[339388310,1727542247678,-164.680716,0.0001988,2]
[339388311,1727542247687,-151.0,0.0001988,2]
[339388312,1727542247696,-463.7514,0.0001988,2]
[339388313,1727542247705,-463.7514,0.0001988,2]
[339388314,1727542247714,-2000.0,0.0001988,2]
[339388315,1727542247723,-2000.0,0.0001988,2]
[339388316,1727542247732,-2000.0,0.0001988,2]
[339388317,1727542247741,-2000.0,0.0001988,2]
[339388318,1727542247750,-2000.0,0.0001988,2]
[339388319,1727542247759,-2000.0,0.0001988,2]
[339388320,1727542247769,-2000.0,0.0001988,2]
[339388321,1727542247778,-2000.0,0.0001988,2]
[339388322,1727542247787,-2000.0,0.0001988,2]
[339388323,1727542247796,-2000.0,0.0001988,2]
[339388324,1727542247805,-2000.0,0.0001988,2]
[339388325,1727542247814,-2000.0,0.0001988,2]
[339388326,1727542247823,-2000.0,0.0001988,2]
[339388327,1727542247832,-2000.0,0.0001988,2]
[339388328,1727542247841,-2000.0,0.0001988,2]
[339388329,1727542247851,-2000.0,0.0001988,2]
[339388330,1727542247860,-2000.0,0.0001988,2]
[339388331,1727542247869,-2000.0,0.0001988,2]
[339388332,1727542247878,-2000.0,0.0001988,2]
[339388333,1727542247888,-2000.0,0.0001988,2]
[339388334,1727542247898,-2000.0,0.0001988,2]
[339388335,1727542247910,-2000.0,0.0001988,2]
[339388336,1727542247920,-225.368906,0.0001988,2]
[339388337,1727542247931,-228.969943,0.0001988,2]
[339388338,1727542247942,-228.969943,0.0001988,2]
[339388339,1727542247953,-151.0,0.0001988,2]
[339388340,1727542247963,-151.0,0.0001988,2]
[339388341,1727542247975,-1281.12701,0.0001988,2]
[339388342,1727542247986,-1281.12701,0.0001988,2]
[339388343,1727542247997,-151.0,0.0001988,2]
[339388344,1727542248007,-399.19309904,0.00019889,2]
[339388345,1727542248016,-4753.035115,0.00019889,2]
[339388346,1727542248026,-4753.035115,0.00019889,2]
[339388347,1727542248035,-151.0,0.00019889,2]
[339388348,1727542248044,-268.206716,0.00019889,2]
[339388349,1727542248055,-173.375908,0.00019889,2]
[339388350,1727542248065,-173.375908,0.00019889,2]
[339388351,1727542248075,-158.985122,0.00019889,2]
[339388352,1727542248084,-158.985122,0.00019889,2]
[339388353,1727542248094,-616.288879,0.00019889,2]
[339388354,1727542248103,-616.288879,0.00019889,2]
[339388355,1727542248199,-508.894113,0.00019889,2]
[339388356,1727542248210,-508.894113,0.00019889,2]
[339388357,1727542248221,-464.32699,0.00019889,2]
[339388358,1727542248231,-464.32699,0.00019889,2]
[339388359,1727542248241,-151.0,0.00019889,2]
[339388360,1727542248251,-151.0,0.00019889,2]
[339388361,1727542248261,-1825.965415,0.00019889,2]
[339388362,1727542248270,-419.020737,0.00019889,2]
[339388363,1727542248280,-1825.965415,0.00019889,2]
[339388364,1727542248289,-419.020737,0.00019889,2]
[339388365,1727542248299,-150.112233,0.000199,2]
[339388366,1727542248308,-150.112233,0.000199,2]
[339388367,1727542248318,-6823.95105329,0.0001992,3]
[339388368,1727542248329,-40943.7063197,0.0001992,3]
[339388369,1727542248338,-151.0,0.00019921,2]
[339388370,1727542248348,-1281.12701,0.00019921,2]
[339388371,1727542248357,-1281.12701,0.00019921,2]
[339388372,1727542248367,-151.0,0.00019921,2]
[339388373,1727542248377,-160.86251735,0.00019929,2]
[339388374,1727542248387,-1153.146607,0.0001993,2]
[339388375,1727542248397,-1153.146607,0.0001993,2]
[339388376,1727542248406,-1547.313925,0.0001993,2]
[339388377,1727542248416,-1547.313925,0.0001993,2]
[339388378,1727542248426,-174.736616,0.0001993,2]
[339388379,1727542248436,-4753.035115,0.0001993,2]
[339388380,1727542248446,-151.0,0.0001993,2]
[339388381,1727542248455,-151.0,0.0001993,2]
[339388382,1727542248465,-174.736616,0.0001993,2]
[339388383,1727542248476,-4753.035115,0.0001993,2]
[339388384,1727542248486,-151.0,0.0001993,2]
[339388385,1727542248497,-463.7514,0.0001993,2]
[339388386,1727542248506,-463.7514,0.0001993,2]
[339388387,1727542248515,-151.0,0.0001993,2]
[339388388,1727542248526,-157.49175,0.0001993,2]
[339388389,1727542248535,-173.375908,0.0001993,2]
[339388390,1727542248544,-173.375908,0.0001993,2]
[339388391,1727542248553,-316.419009,0.0001993,2]
[339388392,1727542248562,-312.457129,0.0001993,2]
[339388393,1727542248571,-228.969943,0.0001993,2]
[339388394,1727542248581,-316.419009,0.0001993,2]
[339388395,1727542248591,-312.457129,0.0001993,2]
[339388396,1727542248602,-228.969943,0.0001993,2]
[339388397,1727542248612,-1043.98033,0.0001993,2]
[339388398,1727542248621,-151.0,0.0001993,2]
[339388399,1727542248631,-1043.98033,0.0001993,2]
[339388400,1727542248640,-158.985122,0.0001993,2]
[339388401,1727542248650,-158.985122,0.0001993,2]
[339388402,1727542248661,-197.231573,0.0001993,2]
[339388403,1727542248671,-616.288879,0.0001993,2]
[339388404,1727542248681,-616.288879,0.0001993,2]
[339388405,1727542248690,-508.894113,0.0001993,2]
[339388406,1727542248699,-508.894113,0.0001993,2]
[339388407,1727542248709,-464.32699,0.0001993,2]
[339388408,1727542248718,-464.32699,0.0001993,2]
[339388409,1727542248729,-151.0,0.0001993,2]
[339388410,1727542248738,-151.0,0.0001993,2]
[339388411,1727542248748,-1825.965415,0.0001993,2]
[339388412,1727542248757,-419.020737,0.0001993,2]
[339388413,1727542248767,-1825.965415,0.0001993,2]
[339388414,1727542248778,-419.020737,0.0001993,2]
[339388415,1727542248788,-151.0,0.0001994,2]
[339388416,1727542248799,-480.759433,0.0001994,2]
[339388417,1727542248810,-480.759433,0.0001994,2]
[339388418,1727542248820,-151.0,0.0001994,2]
[339388419,1727542248830,-528.768983,0.0001994,2]
[339388420,1727542248840,-332.653729,0.0001994,2]
[339388421,1727542248851,-528.768983,0.0001994,2]
[339388422,1727542248860,-332.653729,0.0001994,2]
[339388423,1727542248870,-151.0,0.0001994,2]
[339388424,1727542248880,-151.0,0.0001994,2]
[339388425,1727542248890,-151.0,0.0001994,2]
[339388426,1727542248899,-838.509284,0.0001994,2]
[339388427,1727542248909,-151.0,0.0001994,2]
[339388428,1727542248918,-838.509284,0.0001994,2]
[339388429,1727542248927,-2385.102531,0.0001994,2]
[339388430,1727542248936,-2385.102531,0.0001994,2]
[339388431,1727542248946,-1055.053827,0.0001994,2]
[339388432,1727542248959,-1055.053827,0.0001994,2]
[339388433,1727542248969,-670.754086,0.0001994,2]
[339388434,1727542248978,-670.754086,0.0001994,2]
[339388435,1727542248987,-500.08509228,0.00019973,2]
[339388436,1727542248997,-500.0,0.00019973,2]
[339388437,1727542249006,-500.0,0.00019973,2]
[339388438,1727542249016,-616.288879,0.0001999,2]
[339388439,1727542249026,-616.288879,0.0001999,2]
[339388440,1727542249036,-508.894113,0.0001999,2]
[339388441,1727542249046,-508.894113,0.0001999,2]
[339388442,1727542249055,-464.32699,0.0001999,2]
[339388443,1727542249065,-464.32699,0.0001999,2]
[339388444,1727542249075,-151.0,0.0001999,2]
[339388445,1727542249084,-151.0,0.0001999,2]
[339388446,1727542249094,-1825.965415,0.0001999,2]
[339388447,1727542249103,-419.020737,0.0001999,2]
[339388448,1727542249114,-1825.965415,0.0001999,2]
[339388449,1727542249123,-419.020737,0.0001999,2]
[339388450,1727542249132,-500.0,0.0002,2]
[339388451,1727542249142,-500.0,0.0002,2]
[339388452,1727542249152,-701.7,0.0002,2]
[339388453,1727542249162,-500.0,0.0002,2]
[339388454,1727542249173,-587.22,0.0002,2]
[339388455,1727542249183,-1865.81,0.0002,2]
[339388456,1727542249193,-1153.146607,0.0002,2]
[339388457,1727542249202,-1153.146607,0.0002,2]
[339388458,1727542249211,-1547.313925,0.0002,2]
[339388459,1727542249220,-1547.313925,0.0002,2]
[339388460,1727542249229,-506.53547252,0.0002,2]
[339388461,1727542249238,-150.112233,0.0002,2]
[339388462,1727542249249,-174.736616,0.0002,2]
[339388463,1727542249258,-4753.035115,0.0002,2]
[339388464,1727542249268,-151.0,0.0002,2]
[339388465,1727542249277,-151.0,0.0002,2]
[339388466,1727542249288,-174.736616,0.0002,2]
[339388467,1727542249298,-500.0,0.0002,2]
[339388468,1727542249308,-4753.035115,0.0002,2]
[339388469,1727542249318,-151.0,0.0002,2]
[339388470,1727542249329,-463.7514,0.0002,2]
[339388471,1727542249339,-463.7514,0.0002,2]
[339388472,1727542249349,-500.0,0.0002,2]
[339388473,1727542249359,-151.0,0.0002,2]
[339388474,1727542249369,-832.09,0.0002,2]
[339388475,1727542249378,-500.0,0.0002,2]
[339388476,1727542249387,-200.0,0.0002,2]
[339388477,1727542249396,-173.375908,0.0002,2]
[339388478,1727542249406,-500.0,0.0002,2]
[339388479,1727542249416,-173.375908,0.0002,2]
[339388480,1727542249426,-500.0,0.0002,2]
[339388481,1727542249435,-500.0,0.0002,2]
[339388482,1727542249445,-316.419009,0.0002,2]
[339388483,1727542249456,-312.457129,0.0002,2]
[339388484,1727542249467,-228.969943,0.0002,2]
[339388485,1727542249476,-316.419009,0.0002,2]
[339388486,1727542249486,-312.457129,0.0002,2]
[339388487,1727542249496,-228.969943,0.0002,2]
[339388488,1727542249507,-494.03878567,0.0002,2]
[339388489,1727542249517,-1043.98033,0.0002,2]
[339388490,1727542249526,-275.110952,0.0002,2]
[339388491,1727542249537,-1043.98033,0.0002,2]
[339388492,1727542249547,-158.985122,0.0002,2]
[339388493,1727542249558,-500.0,0.0002,2]
[339388494,1727542249567,-158.985122,0.0002,2]
[339388495,1727542249577,-500.0,0.0002,2]
[339388496,1727542249586,-500.0,0.0002,2]
[339388497,1727542249597,-528.82,0.0002,2]
[339388498,1727542249608,-4026.31,0.0002,2]
[339388499,1727542249618,-569.18,0.0002,2]
[339388500,1727542249630,-4171.59,0.0002,2]
[339388501,1727542249640,-1336.06,0.0002,2]
[339388502,1727542249650,-500.0,0.0002,2]
[339388503,1727542249659,-500.0,0.0002,2]
[339388504,1727542249668,-3246.5,0.0002,2]
[339388505,1727542249678,-500.0,0.0002,2]
[339388506,1727542249688,-500.0,0.0002,2]
[339388507,1727542249698,-318.83338039,0.0002,2]
[339388508,1727542249709,-2116.29,0.0002,2]
[339388509,1727542249718,-688.64,0.0002,2]
[339388510,1727542249729,-500.0,0.0002,2]
[339388511,1727542249740,-500.0,0.0002,2]
[339388512,1727542249750,-4126.31,0.0002,2]
[339388513,1727542249759,-151.0,0.0002,2]
[339388514,1727542249769,-1281.12701,0.0002,2]
[339388515,1727542249779,-1281.12701,0.0002,2]
[339388516,1727542249790,-500.0,0.0002,2]
[339388517,1727542249800,-151.0,0.0002,2]
[339388518,1727542249811,-2629.88,0.0002,2]
[339388519,1727542249822,-500.0,0.00020073,2]
[339388520,1727542249832,-500.0,0.00020073,2]
[339388521,1727542249842,-301.02467576,0.00020073,2]
[339388522,1727542249852,-500.0,0.00020073,2]
[339388523,1727542249943,-500.0,0.00020073,2]
[339388524,1727542249955,-500.0,0.00020073,2]
[339388525,1727542249965,-316.419009,0.00020079,2]
[339388526,1727542249976,-312.457129,0.00020079,2]
[339388527,1727542249987,-316.419009,0.00020079,2]
[339388528,1727542249998,-312.457129,0.00020079,2]
[339388529,1727542250007,-1043.98033,0.00020079,2]
[339388530,1727542250016,-1043.98033,0.00020079,2]
[339388531,1727542250026,-616.288879,0.00020079,2]
[339388532,1727542250036,-616.288879,0.00020079,2]
[339388533,1727542250046,-508.894113,0.00020079,2]
[339388534,1727542250055,-508.894113,0.00020079,2]
[339388535,1727542250065,-464.32699,0.00020079,2]
[339388536,1727542250076,-464.32699,0.00020079,2]
[339388537,1727542250085,-151.0,0.00020079,2]
[339388538,1727542250095,-151.0,0.00020079,2]
[339388539,1727542250105,-1825.965415,0.00020079,2]
[339388540,1727542250114,-419.020737,0.00020079,2]
[339388541,1727542250124,-1825.965415,0.00020079,2]
[339388542,1727542250134,-419.020737,0.00020079,2]
[339388543,1727542250146,-160.0,0.00020088,2]
[339388544,1727542250156,-160.0,0.00020088,2]
[339388545,1727542250166,-172.049496,0.00020089,2]
[339388546,1727542250178,-172.049496,0.00020089,2]
[339388547,1727542250188,-172.049496,0.00020089,2]
[339388548,1727542250199,-172.049496,0.00020089,2]
[339388549,1727542250210,-151.0,0.00020089,2]
[339388550,1727542250221,-151.0,0.00020089,2]
[339388551,1727542250232,-151.0,0.00020089,2]
[339388552,1727542250241,-151.0,0.00020089,2]
[339388553,1727542250254,-1464.754988,0.00020089,2]
[339388554,1727542250264,-1464.754988,0.00020089,2]
[339388555,1727542250274,-407.59031,0.00020089,2]
[339388556,1727542250283,-407.59031,0.00020089,2]
[339388557,1727542250292,-1464.754988,0.00020089,2]
[339388558,1727542250301,-1464.754988,0.00020089,2]
[339388559,1727542250312,-407.59031,0.00020089,2]
[339388560,1727542250321,-407.59031,0.00020089,2]
[339388561,1727542250332,-151.0,0.00020089,2]
[339388562,1727542250342,-151.0,0.00020089,2]
[339388563,1727542250352,-151.0,0.00020089,2]
[339388564,1727542250362,-151.0,0.00020089,2]
[339388565,1727542250372,-249.766203,0.00020089,2]
[339388566,1727542250385,-249.766203,0.00020089,2]
[339388567,1727542250396,-249.766203,0.00020089,2]
[339388568,1727542250407,-249.766203,0.00020089,2]
[339388569,1727542250416,-151.0,0.00020089,2]
[339388570,1727542250426,-151.0,0.00020089,2]
[339388571,1727542250436,-151.0,0.00020089,2]
[339388572,1727542250446,-151.0,0.00020089,2]
[339388573,1727542250456,-253.255878,0.00020089,2]
[339388574,1727542250466,-253.255878,0.00020089,2]
[339388575,1727542250475,-151.0,0.00020089,2]
[339388576,1727542250485,-151.0,0.00020089,2]
[339388577,1727542250494,-253.255878,0.00020089,2]
[339388578,1727542250504,-253.255878,0.00020089,2]
[339388579,1727542250515,-151.0,0.00020089,2]
[339388580,1727542250526,-151.0,0.00020089,2]
[339388581,1727542250535,-151.0,0.00020089,2]
[339388582,1727542250547,-151.0,0.00020089,2]
[339388583,1727542250559,-151.0,0.00020089,2]
[339388584,1727542250568,-151.0,0.00020089,2]
[339388585,1727542250577,-1134.529647,0.00020089,2]
[339388586,1727542250586,-1134.529647,0.00020089,2]
[339388587,1727542250597,-1134.529647,0.00020089,2]
[339388588,1727542250608,-1134.529647,0.00020089,2]
[339388589,1727542250619,-480.759433,0.00020089,2]
[339388590,1727542250628,-480.759433,0.00020089,2]
[339388591,1727542250639,-480.759433,0.00020089,2]
[339388592,1727542250649,-480.759433,0.00020089,2]
[339388593,1727542250659,-151.0,0.00020089,2]
[339388594,1727542250671,-277.334986,0.00020089,2]
[339388595,1727542250682,-528.768983,0.00020089,2]
[339388596,1727542250692,-528.768983,0.00020089,2]
[339388597,1727542250703,-332.653729,0.00020089,2]
[339388598,1727542250715,-332.653729,0.00020089,2]
[339388599,1727542250725,-528.768983,0.00020089,2]
[339388600,1727542250735,-528.768983,0.00020089,2]
[339388601,1727542250747,-332.653729,0.00020089,2]
[339388602,1727542250756,-332.653729,0.00020089,2]
[339388603,1727542250768,-151.0,0.00020089,2]
[339388604,1727542250777,-151.0,0.00020089,2]
[339388605,1727542250786,-151.0,0.00020089,2]
[339388606,1727542250796,-151.0,0.00020089,2]
[339388607,1727542250806,-262.124344,0.00020089,2]
[339388608,1727542250818,-838.509284,0.00020089,2]
[339388609,1727542250829,-838.509284,0.00020089,2]
[339388610,1727542250839,-151.0,0.00020089,2]
[339388611,1727542250847,-151.0,0.00020089,2]
[339388612,1727542250857,-838.509284,0.00020089,2]
[339388613,1727542250867,-838.509284,0.00020089,2]
[339388614,1727542250878,-2385.102531,0.00020089,2]
[339388615,1727542250888,-2385.102531,0.00020089,2]
[339388616,1727542250897,-2385.102531,0.00020089,2]
[339388617,1727542250907,-2385.102531,0.00020089,2]
[339388618,1727542250916,-1153.146607,0.00020089,2]
[339388619,1727542250926,-1153.146607,0.00020089,2]
[339388620,1727542250935,-1547.313925,0.00020089,2]
[339388621,1727542250944,-1547.313925,0.00020089,2]
[339388622,1727542250953,-174.736616,0.00020089,2]
[339388623,1727542250963,-1055.053827,0.00020089,2]
[339388624,1727542250973,-1055.053827,0.00020089,2]
[339388625,1727542250983,-4753.035115,0.00020089,2]
[339388626,1727542250993,-151.0,0.00020089,2]
[339388627,1727542251003,-151.0,0.00020089,2]
[339388628,1727542251012,-174.736616,0.00020089,2]
[339388629,1727542251022,-1055.053827,0.00020089,2]
[339388630,1727542251032,-4753.035115,0.00020089,2]
[339388631,1727542251041,-1055.053827,0.00020089,2]
[339388632,1727542251050,-151.0,0.00020089,2]
[339388633,1727542251060,-463.7514,0.00020089,2]
[339388634,1727542251069,-463.7514,0.00020089,2]
[339388635,1727542251080,-151.0,0.00020089,2]
[339388636,1727542251090,-670.754086,0.00020089,2]
[339388637,1727542251099,-670.754086,0.00020089,2]
[339388638,1727542251110,-670.754086,0.00020089,2]
[339388639,1727542251119,-670.754086,0.00020089,2]
[339388640,1727542251129,-173.375908,0.00020089,2]
[339388641,1727542251138,-173.375908,0.00020089,2]
[339388642,1727542251147,-316.419009,0.00020089,2]
[339388643,1727542251156,-312.457129,0.00020089,2]
[339388644,1727542251166,-228.969943,0.00020089,2]
[339388645,1727542251180,-316.419009,0.00020089,2]
[339388646,1727542251190,-312.457129,0.00020089,2]
[339388647,1727542251199,-228.969943,0.00020089,2]
[339388648,1727542251209,-1043.98033,0.00020089,2]
[339388649,1727542251219,-1043.98033,0.00020089,2]
[339388650,1727542251228,-158.985122,0.00020089,2]
[339388651,1727542251238,-158.985122,0.00020089,2]
[339388652,1727542251248,-616.288879,0.00020089,2]
[339388653,1727542251258,-616.288879,0.00020089,2]
[339388654,1727542251267,-508.894113,0.00020089,2]
[339388655,1727542251277,-508.894113,0.00020089,2]
[339388656,1727542251287,-464.32699,0.00020089,2]
[339388657,1727542251298,-464.32699,0.00020089,2]
[339388658,1727542251308,-151.0,0.00020089,2]
[339388659,1727542251318,-151.0,0.00020089,2]
[339388660,1727542251328,-151.0,0.00020089,2]
[339388661,1727542251339,-1825.965415,0.00020089,2]
[339388662,1727542251349,-419.020737,0.00020089,2]
[339388663,1727542251360,-1281.12701,0.00020089,2]
[339388664,1727542251370,-1825.965415,0.00020089,2]
[339388665,1727542251381,-419.020737,0.00020089,2]
[339388666,1727542251391,-1281.12701,0.00020089,2]
[339388667,1727542251400,-309.20853301,0.00020098,2]
[339388668,1727542251411,-500.0,0.00020099,2]
[339388669,1727542251421,-500.0,0.00020099,2]
[339388670,1727542251431,-197.70000002,0.00020099,2]
[339388671,1727542251440,-500.0,0.00020099,2]
[339388672,1727542251449,-500.0,0.00020099,2]
[339388673,1727542251458,-500.0,0.00020099,2]
[339388674,1727542251468,-500.0,0.00020099,2]
[339388675,1727542251477,-2557.56,0.00020099,2]
[339388676,1727542251486,-500.0,0.00020099,2]
[339388677,1727542251573,-491.14548449,0.00020099,2]
[339388678,1727542251584,-642.58,0.00020099,2]
[339388679,1727542251594,-500.0,0.00020099,2]
[339388680,1727542251603,-500.0,0.00020099,2]
[339388681,1727542251613,-500.0,0.00020099,2]
[339388682,1727542251623,-500.0,0.00020099,2]
[339388683,1727542251633,-500.0,0.00020099,2]
[339388684,1727542251644,-500.0,0.00020099,5]
[339388685,1727542251654,-521.76225226,0.00020099,2]
[339388686,1727542251664,-386.55695275,0.00020099,2]
[339388687,1727542251673,-401.18822066,0.00020099,2]
[339388688,1727542251683,-500.0,0.00020099,2]
[339388689,1727542251693,-500.0,0.00020099,2]
[339388690,1727542251704,-500.0,0.00020099,2]
[339388691,1727542251714,-500.0,0.00020099,2]
[339388692,1727542251724,-500.0,0.00020099,2]
[339388693,1727542251735,-218.69717751,0.00020099,2]
[339388694,1727542251745,-500.0,0.00020099,2]
[339388695,1727542251754,-500.0,0.00020099,2]
[339388696,1727542251763,-500.0,0.00020099,2]
[339388697,1727542251772,-355.65019265,0.00020099,2]
[339388698,1727542251782,-500.0,0.00020099,2]
[339388699,1727542251792,-500.0,0.00020099,2]
[339388700,1727542251801,-500.0,0.00020099,2]
[339388701,1727542251811,-505.58776362,0.00020099,2]
[339388702,1727542251821,-500.0,0.00020099,2]